Workbook

Sheet Лист1
A1: ИТОГОВЫЕ РЕЗУЛЬТАТЫ ВсОШ ПО АНГЛИЙСКОМУ ЯЗЫКУ
A2: № п/п | B2: Фамилия | C2: Имя | D2: Отчество | E2: Пол (м/ж) | F2: Класс обучения | G2: Кол-во баллов | H2: Максимальное количество баллов | I2: Рейтинг, % | J2: Статус
A3: 1 | B3: Елтышева | C3: Кира | D3: Владимировна | E3: Ж | F3: 5 | G3: 52 | H3: 65 | I3: =G3/H3 -> 80.00% | J3: Победитель
A4: 2 | B4: Кучумова | C4: Александра | D4: Андреевна | E4: Ж | F4: 5 | G4: 46 | H4: 65 | I4: 70.77% | J4: Призер
A5: 3 | B5: Петров | C5: Артём | D5: Евгеньевич | E5: М | F5: 5 | G5: 45 | H5: 65 | I5: 69.23% | J5: Призер
A6: 4 | B6: Казакова | C6: Диана | D6: Кирилловна | E6: Ж | F6: 5 | G6: 42 | H6: 65 | I6: 64.62% | J6: Призер
A7: 5 | B7: Сальвассер | C7: Злата | D7: Евгеньевна | E7: Ж | F7: 5 | G7: 42 | H7: 65 | I7: 64.62% | J7: Призер
A8: 6 | B8: Галимов | C8: Артур | D8: Сергеевич | E8: М | F8: 5 | G8: 38 | H8: 65 | I8: 58.46% | J8: Призер
A9: 7 | B9: Гордиенко | C9: Глеб | D9: Александрович | E9: М | F9: 5 | G9: 38 | H9: 65 | I9: 58.46% | J9: Призер
A10: 8 | B10: Серебрянников | C10: Михаил | D10: Иванович | E10: М | F10: 5 | G10: 37 | H10: 65 | I10: 56.92% | J10: Призер
A11: 9 | B11: Качалова | C11: Ульяна | D11: Ивановна | E11: Ж | F11: 5 | G11: 36 | H11: 65 | I11: 55.38% | J11: Призер
A12: 10 | B12: Ильин | C12: Андрей | D12: Денисович | E12: М | F12: 5 | G12: 34 | H12: 65 | I12: 52.31% | J12: Участник
A13: 11 | B13: Тютюнников | C13: Кирилл | D13: Александрович | E13: М | F13: 5 | G13: 31 | H13: 65 | I13: 47.69% | J13: Участник
A14: 12 | B14: Садовин | C14: Сергкй | D14: Иванович | E14: М | F14: 5 | G14: 31 | H14: 65 | I14: 47.69% | J14: Участник
A15: 13 | B15: Збродова | C15: Арина | D15: Евгеньевна | E15: Ж | F15: 5 | G15: 31 | H15: 65 | I15: 47.69% | J15: Участник
A16: 14 | B16: Куликова | C16: Алиса | D16: Дмитриевна | E16: Ж | F16: 5 | G16: 31 | H16: 65 | I16: 47.69% | J16: Участник
A17: 15 | B17: Пушкарь | C17: Константин | D17: Денисович | E17: М | F17: 5 | G17: 30 | H17: 65 | I17: 46.15% | J17: Участник
A18: 16 | B18: Атуахин | C18: Леонель | E18: М | F18: 5 | G18: 27 | H18: 65 | I18: 41.54% | J18: Участник
A19: 17 | B19: Гордон | C19: Давид | D19: Никитич | E19: М | F19: 5 | G19: 27 | H19: 65 | I19: 41.54% | J19: Участник
A20: 18 | B20: Петренко | C20: Максим | D20: Павлович | E20: М | F20: 5 | G20: 23 | H20: 65 | I20: 35.38% | J20: Участник
A21: 19 | B21: Шульженко | C21: Анастасия | D21: Евгентевна | E21: Ж | F21: 5 | G21: 21 | H21: 65 | I21: 32.31% | J21: Участник
A22: 20 | B22: Полежаев | C22: Борис | D22: Сергеевич | E22: М | F22: 5 | G22: 20 | H22: 65 | I22: 30.77% | J22: Участник
A23: 21 | B23: Зайцева | C23: Виктория | E23: Ж | F23: 5 | G23: 20 | H23: 65 | I23: 30.77% | J23: Участник
A24: 22 | B24: Герасимов | C24: Макар | D24: Юрьевич | E24: М | F24: 5 | G24: 20 | H24: 65 | I24: 30.77% | J24: Участник
A25: 23 | B25: Шелеметьев | C25: Ярослав | D25: Сергеевич | E25: М | F25: 5 | G25: 19 | H25: 65 | I25: =G25/H25 -> 29.23% | J25: Участник
A26: 24 | B26: Ирицян | C26: Самвел | D26: Артурович | E26: М | F26: 5 | G26: 17 | H26: 65 | I26: 26.15% | J26: Участник
A27: 25 | B27: Некрасов | C27: Савелий | D27: Артемович | E27: М | F27: 5 | G27: 17 | H27: 65 | I27: 26.15% | J27: Участник
A28: 26 | B28: Витковская | C28: Мария | D28: Андреевна | E28: Ж | F28: 5 | G28: 16 | H28: 65 | I28: 24.62% | J28: Участник
A29: 27 | B29: Юферова | C29: Полина | D29: Борисовна | E29: Ж | F29: 5 | G29: 16 | H29: 65 | I29: 24.62% | J29: Участник
A30: 28 | B30: Лесквич | C30: Ксения | D30: Алексеевна | E30: Ж | F30: 5 | G30: 15 | H30: 65 | I30: 23.08% | J30: Участник
A31: 29 | B31: Чучакин | C31: Макар | D31: Артемович | E31: М | F31: 5 | G31: 15 | H31: 65 | I31: 23.08% | J31: Участник
A32: 30 | B32: Акулова | C32: Анастасия | D32: Андреевна | E32: Ж | F32: 5 | G32: 14 | H32: 65 | I32: 21.54% | J32: Участник
A33: 31 | B33: Шапкина | C33: Милана | D33: Вячеславовна | E33: Ж | F33: 5 | G33: 14 | H33: 65 | I33: 21.54% | J33: Участник
A34: 32 | B34: Капустина | C34: Александра | D34: Дмитриевна | E34: Ж | F34: 5 | G34: 14 | H34: 65 | I34: 21.54% | J34: Участник
A35: 33 | B35: Гордеева | C35: Александра | D35: Сергеевна | E35: Ж | F35: 5 | G35: 13 | H35: 65 | I35: 20.00% | J35: Участник
A36: 34 | B36: Панкратов | C36: Иван | E36: М | F36: 5 | G36: 13 | H36: 65 | I36: 20.00% | J36: Участник
A37: 35 | B37: Добронос | C37: Екатерина | D37: Александровна | E37: Ж | F37: 5 | G37: 12 | H37: 65 | I37: 18.46% | J37: Участник
A38: 36 | B38: Циберт | C38: Артемий | D38: Эдуардович | E38: М | F38: 5 | G38: 12 | H38: 65 | I38: 18.46% | J38: Участник
A39: 37 | B39: Захарова | C39: Диана | D39: Витальевна | E39: Ж | F39: 5 | G39: 10 | H39: 65 | I39: 15.38% | J39: Участник
A40: 38 | B40: Вайнбум | C40: Илья | D40: Максимович | E40: М | F40: 5 | G40: 8 | H40: 65 | I40: 12.31% | J40: Участник
A41: 39 | B41: Никонович | C41: Ярослав | D41: Андреевич | E41: М | F41: 5 | G41: 6 | H41: 65 | I41: 9.23% | J41: Участник
A42: 40 | B42: Мамонтов | C42: Александр | D42: Андреевич | E42: М | F42: 6 | G42: 61 | H42: 65 | I42: 93.85% | J42: Победитель
A43: 41 | B43: Евсеев | C43: Роман | D43: Сергеевич | E43: М | F43: 6 | G43: 55 | H43: 65 | I43: 84.62% | J43: Призер
A44: 42 | B44: Попов | C44: Всеволод | D44: Олегович | E44: М | F44: 6 | G44: 52 | H44: 65 | I44: 80.00% | J44: Призер
A45: 43 | B45: Ганжелюк | C45: Михаил | D45: Михайлович | E45: М | F45: 6 | G45: 52 | H45: 65 | I45: 80.00% | J45: Призер
A46: 44 | B46: Горбачев | C46: Мартин | D46: Артемович | E46: М | F46: 6 | G46: 49 | H46: 65 | I46: 75.38% | J46: Призер
A47: 45 | B47: Свирский | C47: Роман | D47: Дмитриевич | E47: М | F47: 6 | G47: 47 | H47: 65 | I47: 72.31% | J47: Призер
A48: 46 | B48: Гавришенко | C48: Ева | D48: Витальевна | E48: Ж | F48: 6 | G48: 47 | H48: 65 | I48: 72.31% | J48: Призер
A49: 47 | B49: Вальков | C49: Владимир | D49: Владимирович | E49: М | F49: 6 | G49: 46 | H49: 65 | I49: 70.77% | J49: Призер
A50: 48 | B50: Кудинов | C50: Ярослав | D50: Петрович | E50: М | F50: 6 | G50: 46 | H50: 65 | I50: 70.77% | J50: Призер
A51: 49 | B51: Щепин | C51: Петр | D51: Дмитриевич | E51: М | F51: 6 | G51: 46 | H51: 65 | I51: 70.77% | J51: Призер
A52: 50 | B52: Иванчей | C52: Михаил | D52: Максимович | E52: М | F52: 6 | G52: 45 | H52: 65 | I52: 69.23% | J52: Участник
A53: 51 | B53: Гасанов | C53: Али | D53: Яшарович | E53: М | F53: 6 | G53: 44 | H53: 65 | I53: 67.69% | J53: Участник
A54: 52 | B54: Феллер | C54: Элина | D54: Матвеевна | E54: Ж | F54: 6 | G54: 43 | H54: 65 | I54: 66.15% | J54: Участник
A55: 53 | B55: Ярин | C55: Федор | E55: М | F55: 6 | G55: 43 | H55: 65 | I55: 66.15% | J55: Участник
A56: 54 | B56: Лебедиков | C56: Эжен | D56: Евгеньевич | E56: М | F56: 6 | G56: 42 | H56: 65 | I56: 64.62% | J56: Участник
A57: 55 | B57: Смирнов | C57: Сергей | D57: Валентинович | E57: М | F57: 6 | G57: 41 | H57: 65 | I57: 63.08% | J57: Участник
A58: 56 | B58: Бочкарева | C58: Варвара | D58: Артемовна | E58: Ж | F58: 6 | G58: 40 | H58: 65 | I58: 61.54% | J58: Участник
A59: 57 | B59: Демченко | C59: Михаил | D59: Дмитриевич | E59: М | F59: 6 | G59: 40 | H59: 65 | I59: 61.54% | J59: Участник
A60: 58 | B60: Вагнер | C60: Анастасия | D60: Александровна | E60: Ж | F60: 6 | G60: 37 | H60: 65 | I60: 56.92% | J60: Участник
A61: 59 | B61: Ларин | C61: Павел | D61: Павлович | E61: М | F61: 6 | G61: 37 | H61: 65 | I61: 56.92% | J61: Участник
A62: 60 | B62: Галев | C62: Анатолий | D62: Дмитриевич | E62: М | F62: 6 | G62: 35 | H62: 65 | I62: 53.85% | J62: Участник
A63: 61 | B63: Маркова | C63: Елизавета | D63: Викторовна | E63: Ж | F63: 6 | G63: 34 | H63: 65 | I63: 52.31% | J63: Участник
A64: 62 | B64: Левченко | C64: Варвара | D64: Владимировна | E64: Ж | F64: 6 | G64: 34 | H64: 65 | I64: 52.31% | J64: Участник
A65: 63 | B65: Морозова | C65: Ярослава | D65: Сергеевна | E65: Ж | F65: 6 | G65: 33 | H65: 65 | I65: 50.77% | J65: Участник
A66: 64 | B66: Юманов | C66: Антон | D66: Миронович | E66: М | F66: 6 | G66: 32 | H66: 65 | I66: 49.23% | J66: Участник
A67: 65 | B67: Архипов | C67: Артем | D67: Алексеевич | E67: М | F67: 6 | G67: 31 | H67: 65 | I67: 47.69% | J67: Участник
A68: 66 | B68: Радченко | C68: София | D68: Сергеевна | E68: Ж | F68: 6 | G68: 30 | H68: 65 | I68: 46.15% | J68: Участник
A69: 67 | B69: Искандерова | C69: Карина | D69: Наилевна | E69: Ж | F69: 6 | G69: 30 | H69: 65 | I69: 46.15% | J69: Участник
A70: 68 | B70: Сухоревский | C70: Макар | D70: Павлович | E70: М | F70: 6 | G70: 28 | H70: 65 | I70: 43.08% | J70: Участник
A71: 69 | B71: Дягилев | C71: Святослав | D71: Андреевич | E71: М | F71: 6 | G71: 28 | H71: 65 | I71: 43.08% | J71: Участник
A72: 70 | B72: Чесненко | C72: Дана | E72: Ж | F72: 6 | G72: 28 | H72: 65 | I72: 43.08% | J72: Участник
A73: 71 | B73: Завьялова | C73: Валерия | D73: Максимовна | E73: Ж | F73: 6 | G73: 27 | H73: 65 | I73: 41.54% | J73: Участник
A74: 72 | B74: Зелинский | C74: Макар | D74: Станиславович | E74: М | F74: 6 | G74: 27 | H74: 65 | I74: 41.54% | J74: Участник
A75: 73 | B75: Тестоедов | C75: Евгений | E75: М | F75: 6 | G75: 25 | H75: 65 | I75: 38.46% | J75: Участник
A76: 74 | B76: Тихонова | C76: Амилина | D76: Александровна | E76: Ж | F76: 6 | G76: 24 | H76: 65 | I76: 36.92% | J76: Участник
A77: 75 | B77: Порохнина | C77: Алена | D77: Игоревна | E77: Ж | F77: 6 | G77: 24 | H77: 65 | I77: 36.92% | J77: Участник
A78: 76 | B78: Шишкина | C78: Наталья | D78: Андреевна | E78: Ж | F78: 6 | G78: 20 | H78: 65 | I78: 30.77% | J78: Участник
A79: 77 | B79: Нефедьев | C79: Гордей | D79: Евгеньевич | E79: М | F79: 6 | G79: 17 | H79: 65 | I79: 26.15% | J79: Участник
A80: 78 | B80: Юшкевич | C80: Дмитрий | D80: Евгеньевич | E80: М | F80: 6 | G80: 16 | H80: 65 | I80: 24.62% | J80: Участник
A81: 79 | B81: Иванцов | C81: Тимофей | D81: Дмитриевич | E81: М | F81: 6 | G81: 14 | H81: 65 | I81: 21.54% | J81: Участник
A82: 80 | B82: Каплина | C82: Дарья | D82: Евгеньевна | E82: Ж | F82: 6 | G82: 13 | H82: 65 | I82: 20.00% | J82: Участник
A83: 81 | B83: Унжаков | C83: Андрей | D83: Александрович | E83: М | F83: 6 | G83: 12 | H83: 65 | I83: 18.46% | J83: Участник
A84: 82 | B84: Андреева | C84: Виктория | D84: Сергеевна | E84: Ж | F84: 6 | G84: 12 | H84: 65 | I84: 18.46% | J84: Участник
A85: 83 | B85: Грушинин | C85: Платон | D85: Дмитриевич | E85: М | F85: 6 | G85: 9 | H85: 65 | I85: 13.85% | J85: Участник
A86: 84 | B86: Белявский | C86: Михаил | D86: Романович | E86: М | F86: 6 | G86: 4 | H86: 65 | I86: 6.15% | J86: Участник
A87: 85 | B87: Кустов | C87: Лев | D87: Геннадьевич | E87: М | F87: 7 | G87: 54 | H87: 58 | I87: 93.10% | J87: Победитель
A88: 86 | B88: Патиевец | C88: Тимур | D88: Витальевич | E88: М | F88: 7 | G88: 45 | H88: 58 | I88: 77.59% | J88: Призер
A89: 87 | B89: Ли | C89: Юесюань | E89: Ж | F89: 7 | G89: 41 | H89: 58 | I89: =G89/H89 -> 70.69% | J89: Призер
A90: 88 | B90: Смолин | C90: Максим | D90: Григорьевич | E90: М | F90: 7 | G90: 41 | H90: 58 | I90: =G90/H90 -> 70.69% | J90: Призер
A91: 89 | B91: Денисова | C91: Мария | D91: Сергеевна | E91: Ж | F91: 7 | G91: 40 | H91: 58 | I91: =G91/H91 -> 68.97% | J91: Призер
A92: 90 | B92: Коваль | C92: Валерия | D92: Ильинична | E92: Ж | F92: 7 | G92: 35 | H92: 58 | I92: =G92/H92 -> 60.34% | J92: Призер
A93: 91 | B93: Тархов | C93: Владимир | D93: Александрович | E93: М | F93: 7 | G93: 37 | H93: 58 | I93: =G93/H93 -> 63.79% | J93: Призер
A94: 92 | B94: Свердлова | C94: Кира | D94: Ильинична | E94: Ж | F94: 7 | G94: 34 | H94: 58 | I94: =G94/H94 -> 58.62% | J94: Призер
A95: 93 | B95: Синчугова | C95: Дарья | D95: Дмитриевна | E95: Ж | F95: 7 | G95: 34 | H95: 58 | I95: =G95/H95 -> 58.62% | J95: Призер
A96: 94 | B96: Буховецкая | C96: Елизавета | D96: Ивановна | E96: Ж | F96: 7 | G96: 32 | H96: 58 | I96: =G96/H96 -> 55.17% | J96: Призер
A97: 95 | B97: Геронимус | C97: Александр | D97: Юрьевич | E97: М | F97: 7 | G97: 32 | H97: 58 | I97: 55.17% | J97: Призер
A98: 96 | B98: Сысалетин | C98: Михаил | D98: Сергеевич | E98: М | F98: 7 | G98: 31 | H98: 58 | I98: 53.45% | J98: Призер
A99: 97 | B99: Лихоманов | C99: Евгений | D99: Александрович | E99: М | F99: 7 | G99: 30 | H99: 58 | I99: 51.72% | J99: Призер
A100: 98 | B100: Сельнер | C100: Варвара | D100: Максимовна | E100: Ж | F100: 7 | G100: 30 | H100: 58 | I100: 51.72% | J100: Призер
A101: 99 | B101: Карпенко | C101: Арина | D101: Викторовна | E101: Ж | F101: 7 | G101: 29 | H101: 58 | I101: 50.00% | J101: Призер
A102: 100 | B102: Адаманская | C102: Дарья | D102: Антоновна | E102: Ж | F102: 7 | G102: 28 | H102: 58 | I102: 48.28% | J102: Участник
A103: 101 | B103: Прусаченко | C103: Вера | D103: Тимофеевна | E103: Ж | F103: 7 | G103: 28 | H103: 58 | I103: 48.28% | J103: Участник
A104: 102 | B104: Букреева | C104: Мария | D104: Алексеевна | E104: Ж | F104: 7 | G104: 27 | H104: 58 | I104: 46.55% | J104: Участник
A105: 103 | B105: Ваньтин | C105: Ян | E105: М | F105: 7 | G105: 27 | H105: 58 | I105: 46.55% | J105: Участник
A106: 104 | B106: Легостаева | C106: Дарья | D106: Владимировна | E106: Ж | F106: 7 | G106: 26 | H106: 58 | I106: 44.83% | J106: Участник
A107: 105 | B107: Золотаренко | C107: Ольга | D107: Михайловна | E107: Ж | F107: 7 | G107: 24 | H107: 58 | I107: 41.38% | J107: Участник
A108: 106 | B108: Горбунов | C108: Станислав | D108: Вячеславович | E108: М | F108: 7 | G108: 22 | H108: 58 | I108: 37.93% | J108: Участник
A109: 107 | B109: Сметанин | C109: Иван | D109: Сергеевич | E109: М | F109: 7 | G109: 22 | H109: 58 | I109: 37.93% | J109: Участник
A110: 108 | B110: Гордон | C110: Злата | D110: Никитична | E110: Ж | F110: 7 | G110: 19 | H110: 58 | I110: 32.76% | J110: Участник
A111: 109 | B111: Мирджонов | C111: Рустам | D111: Фаридунович | E111: М | F111: 7 | G111: 16 | H111: 58 | I111: 27.59% | J111: Участник
A112: 110 | B112: Зекова | C112: Варвара | D112: Александровна | E112: Ж | F112: 7 | G112: 15 | H112: 58 | I112: 25.86% | J112: Участник
A113: 111 | B113: Бойко | C113: Мария | D113: Максимовна | E113: Ж | F113: 7 | G113: 13 | H113: 58 | I113: 22.41% | J113: Участник
A114: 112 | B114: Пислегин | C114: Дмитрий | D114: Игоревич | E114: М | F114: 7 | G114: 13 | H114: 58 | I114: 22.41% | J114: Участник
A115: 113 | B115: Кобук | C115: Святослав | D115: Павлович | E115: М | F115: 7 | G115: 12 | H115: 58 | I115: 20.69% | J115: Участник
A116: 114 | B116: Кононыхина | C116: Марьяна | D116: Ильинична | E116: Ж | F116: 7 | G116: 12 | H116: 58 | I116: 20.69% | J116: Участник
A117: 115 | B117: Галиахметова | C117: Ангелина | D117: Антоновна | E117: Ж | F117: 7 | G117: 12 | H117: 58 | I117: 20.69% | J117: Участник
A118: 116 | B118: Холобаева | C118: Дарья | D118: Андреевна | E118: Ж | F118: 7 | G118: 12 | H118: 58 | I118: 20.69% | J118: Участник
A119: 117 | B119: Сафронов | C119: Денис | D119: Михайлович | E119: М | F119: 7 | G119: 11 | H119: 58 | I119: 18.97% | J119: Участник
A120: 118 | B120: Болдок | C120: Дарья | D120: Алексеевна | E120: Ж | F120: 7 | G120: 9 | H120: 58 | I120: 15.52% | J120: Участник
A121: 119 | B121: Макарова | C121: Анастасия | D121: Сергеевна | E121: Ж | F121: 7 | G121: 5 | H121: 58 | I121: 8.62% | J121: Участник
A122: 120 | B122: Пивнева | C122: Мария | D122: Алексеевна | E122: Ж | F122: 7 | G122: 5 | H122: 58 | I122: 8.62% | J122: Участник
A123: 121 | B123: Пислегин | C123: Михаил | D123: Игоревич | E123: М | F123: 7 | G123: 5 | H123: 58 | I123: 8.62% | J123: Участник
A124: 122 | B124: Сикарчук | C124: Александр | E124: М | F124: 7 | G124: 5 | H124: 58 | I124: 8.62% | J124: Участник
A125: 123 | B125: Горохов | C125: Егор | D125: Михайлович | E125: М | F125: 7 | G125: 10 | H125: 58 | I125: 17.24% | J125: Участник
A126: 124 | B126: Лисюткин | C126: Роман | D126: Викторович | E126: М | F126: 7 | G126: 10 | H126: 58 | I126: 17.24% | J126: Участник
A127: 125 | B127: Малахов | C127: Лев | D127: Константинович | E127: М | F127: 7 | G127: 0 | H127: 58 | I127: 0.00% | J127: Участник
A128: 126 | B128: Богданова | C128: Диана | D128: Дмитриевна | E128: Ж | F128: 8 | G128: 51 | H128: 58 | I128: 87.93% | J128: Победитель
A129: 127 | B129: Ильина | C129: Варвара | E129: Ж | F129: 8 | G129: 48 | H129: 58 | I129: 82.76% | J129: Призер
A130: 128 | B130: Саенко | C130: Матвей | E130: М | F130: 8 | G130: 46 | H130: 58 | I130: 79.31% | J130: Призер
A131: 129 | B131: Горева | C131: Елизавета | D131: Павловна | E131: Ж | F131: 8 | G131: 43 | H131: 58 | I131: 74.14% | J131: Призер
A132: 130 | B132: Ченина | C132: Анастасия | D132: Сергеевна | E132: Ж | F132: 8 | G132: 41 | H132: 58 | I132: 70.69% | J132: Призер
A133: 131 | B133: Голубева | C133: Виктория | D133: Борисовна | E133: Ж | F133: 8 | G133: 38 | H133: 58 | I133: =G133/H133 -> 65.52% | J133: Призер
A134: 132 | B134: Анучин | C134: Максим | E134: М | F134: 8 | G134: 36 | H134: 58 | I134: 62.07% | J134: Призер
A135: 133 | B135: Макаров | C135: Артур | E135: М | F135: 8 | G135: 35 | H135: 58 | I135: 60.34% | J135: Призер
A136: 134 | B136: Чигорева | C136: Таисия | D136: Антоновна | F136: 8 | G136: 35 | H136: 58 | I136: 60.34% | J136: Призер
A137: 135 | B137: Колганов | C137: Глеб | E137: М | F137: 8 | G137: 33 | H137: 58 | I137: 56.90% | J137: Призер
A138: 136 | B138: Тарханов | C138: Давид | D138: Павлович | E138: М | F138: 8 | G138: 33 | H138: 58 | I138: 56.90% | J138: Призер
A139: 137 | B139: Полякова | C139: Аделина | D139: Вячеславовна | E139: Ж | F139: 8 | G139: 33 | H139: 58 | I139: 56.90% | J139: Призер
A140: 138 | B140: Попова | C140: Елизавета | D140: Романовна | E140: Ж | F140: 8 | G140: 30 | H140: 58 | I140: 51.72% | J140: Призер
A141: 139 | B141: Савченко | C141: Константин | D141: Борисович | E141: М | F141: 8 | G141: 29 | H141: 58 | I141: 50.00% | J141: Призер
A142: 140 | B142: Степашенко | C142: София | E142: Ж | F142: 8 | G142: 27 | H142: 58 | I142: 46.55% | J142: Участник
A143: 141 | B143: Сухаревский | C143: Семён | D143: Павлович | E143: М | F143: 8 | G143: 27 | H143: 58 | I143: 46.55% | J143: Участник
A144: 142 | B144: Логинова | C144: Алиса | E144: Ж | F144: 8 | G144: 26 | H144: 58 | I144: 44.83% | J144: Участник
A145: 143 | B145: Головина | C145: Мария | E145: Ж | F145: 8 | G145: 25 | H145: 58 | I145: 43.10% | J145: Участник
A146: 144 | B146: Штейзель | C146: Богдан | D146: Артемович | E146: М | F146: 8 | G146: 25 | H146: 58 | I146: 43.10% | J146: Участник
A147: 145 | B147: Гапатик | C147: Анастасия | E147: Ж | F147: 8 | G147: 24 | H147: 58 | I147: 41.38% | J147: Участник
A148: 146 | B148: Расоян | C148: Руслан | E148: М | F148: 8 | G148: 23 | H148: 58 | I148: 39.66% | J148: Участник
A149: 147 | B149: Степанов | C149: Константин | D149: Сергеевич | E149: М | F149: 8 | G149: 23 | H149: 58 | I149: 39.66% | J149: Участник
A150: 148 | B150: Абрамов | C150: Александр | D150: Александрович | E150: М | F150: 8 | G150: 23 | H150: 58 | I150: 39.66% | J150: Участник
A151: 149 | B151: Нерадовская | C151: Алена | D151: Павловна | E151: Ж | F151: 8 | G151: 21 | H151: 58 | I151: 36.21% | J151: Участник
A152: 150 | B152: Янкина | C152: Ксения | D152: Денисовна | E152: Ж | F152: 8 | G152: 20 | H152: 58 | I152: 34.48% | J152: Участник
A153: 151 | B153: Аверкин | C153: Егор | D153: Николаевич | E153: М | F153: 8 | G153: 20 | H153: 58 | I153: 34.48% | J153: Участник
A154: 152 | B154: Ковригин | C154: Юрий | E154: М | F154: 8 | G154: 19 | H154: 58 | I154: 32.76% | J154: Участник
A155: 153 | B155: Бояркин | C155: Богда | D155: Александрович | E155: М | F155: 8 | G155: 19 | H155: 58 | I155: 32.76% | J155: Участник
A156: 154 | B156: Мясникова | C156: Мила | E156: Ж | F156: 8 | G156: 18 | H156: 58 | I156: 31.03% | J156: Участник
A157: 155 | B157: Симакова | C157: Екатерина | D157: Дмитриевна | F157: 8 | G157: 18 | H157: 58 | I157: 31.03% | J157: Участник
A158: 156 | B158: Атаманова | C158: Анастасия | E158: М | F158: 8 | G158: 17 | H158: 58 | I158: 29.31% | J158: Участник
A159: 157 | B159: Кондалева | C159: Вероника | D159: Александровна | E159: Ж | F159: 8 | G159: 17 | H159: 58 | I159: 29.31% | J159: Участник
A160: 158 | B160: Шмальц | C160: Ева | D160: Дмитриевна | E160: Ж | F160: 8 | G160: 16 | H160: 58 | I160: 27.59% | J160: Участник
A161: 159 | B161: Шенк | C161: Всеволод | D161: Андреевич | E161: М | F161: 8 | G161: 13 | H161: 58 | I161: 22.41% | J161: Участник
A162: 160 | B162: Игнатов | C162: Михаил | E162: М | F162: 8 | G162: 12 | H162: 58 | I162: 20.69% | J162: Участник
A163: 161 | B163: Хабибуллин | C163: Валентин | D163: Максимович | E163: М | F163: 8 | G163: 9 | H163: 58 | I163: 15.52% | J163: Участник
A164: 162 | B164: Евтухов | C164: Сергей | D164: Андреевич | E164: М | F164: 8 | G164: 9 | H164: 58 | I164: 15.52% | J164: Участник
A165: 163 | B165: Карандашов | C165: Иван | E165: М | F165: 8 | G165: 8 | H165: 58 | I165: 13.79% | J165: Участник
A166: 164 | B166: Подгорная | C166: Валерия | D166: Сергеевна | E166: Ж | F166: 8 | G166: 8 | H166: 58 | I166: 13.79% | J166: Участник
A167: 165 | B167: Суткин | C167: Влад | E167: М | F167: 8 | G167: 7 | H167: 58 | I167: 12.07% | J167: Участник
A168: 166 | B168: Вереницкий | C168: Матвей | D168: Сергеевич | E168: М | F168: 8 | G168: 6 | H168: 58 | I168: 10.34% | J168: Участник
A169: 167 | B169: Зернова | C169: Вероника | D169: Марковна | E169: Ж | F169: 8 | G169: 4 | H169: 58 | I169: 6.90% | J169: Участник
A170: 168 | B170: Кипарисова | C170: София | D170: Сергеевна | E170: Ж | F170: 8 | G170: 4 | H170: 58 | I170: 6.90% | J170: Участник
A171: 169 | B171: Джамалиева | C171: София | D171: Анваровна | E171: Ж | F171: 8 | G171: 2 | H171: 58 | I171: 3.45% | J171: Участник
A172: 170 | B172: Майоров | C172: Владимир | D172: Алексеевич | E172: М | F172: 8 | G172: 0 | H172: 58 | I172: 0.00% | J172: Участник
A173: 171 | B173: Черепанов | C173: Иван | D173: Андреевич | E173: М | F173: 9 | G173: 57 | H173: 63 | I173: 90.48% | J173: Победитель
A174: 172 | B174: Гнедых | C174: Варвара | D174: Павловна | E174: Ж | F174: 9 | G174: 56 | H174: 63 | I174: 88.89% | J174: Призер
A175: 173 | B175: Казакова | C175: Елизавета | D175: Кирилловна | E175: Ж | F175: 9 | G175: 55 | H175: 63 | I175: 87.30% | J175: Призер
A176: 174 | B176: Леденев | C176: Платон | D176: Евгеньевич | E176: М | F176: 9 | G176: 55 | H176: 63 | I176: 87.30% | J176: Призер
A177: 175 | B177: Шайхисламова | C177: Карина | D177: Ильдаровна | E177: Ж | F177: 9 | G177: 54 | H177: 63 | I177: 85.71% | J177: Призер
A178: 176 | B178: Занько | C178: Варвара | D178: Андреевна | E178: Ж | F178: 9 | G178: 51 | H178: 63 | I178: 80.95% | J178: Призер
A179: 177 | B179: Новоселова | C179: Таисия | D179: Яковлевна | E179: Ж | F179: 9 | G179: 51 | H179: 63 | I179: 80.95% | J179: Призер
A180: 178 | B180: Шкуркина | C180: Кристина | D180: Вячеславовна | E180: Ж | F180: 9 | G180: 50 | H180: 63 | I180: 79.37% | J180: Призер
A181: 179 | B181: Синицин | C181: Иван | D181: Андреевич0 | E181: М | F181: 9 | G181: 47 | H181: 63 | I181: 74.60% | J181: Призер
A182: 180 | B182: Исаев | C182: Платон | D182: Андреевич | E182: М | F182: 9 | G182: 47 | H182: 63 | I182: 74.60% | J182: Призер
A183: 181 | B183: Арбартнот | C183: Дарья | D183: Саймоновна | E183: Ж | F183: 9 | G183: 46 | H183: 63 | I183: 73.02% | J183: Участник
A184: 182 | B184: Сопина | C184: Мария | D184: Ивановна | E184: Ж | F184: 9 | G184: 45 | H184: 63 | I184: 71.43% | J184: Участник
A185: 183 | B185: Руяткина | C185: Дарья | D185: Дмитриевна | E185: Ж | F185: 9 | G185: 42 | H185: 63 | I185: 66.67% | J185: Участник
A186: 184 | B186: Петровичев | C186: Никита | D186: Алексеевич | E186: М | F186: 9 | G186: 42 | H186: 63 | I186: 66.67% | J186: Участник
A187: 185 | B187: Чубченко | C187: Александра | D187: Евгеньевна | E187: Ж | F187: 9 | G187: 36 | H187: 63 | I187: 57.14% | J187: Участник
A188: 186 | B188: Агапова | C188: Вероника | D188: Павловна | E188: Ж | F188: 9 | G188: 35 | H188: 63 | I188: 55.56% | J188: Участник
A189: 187 | B189: Таубес | C189: Арсений | D189: Антонович | E189: М | F189: 9 | G189: 35 | H189: 63 | I189: 55.56% | J189: Участник
A190: 188 | B190: Тремасов | C190: Иван | D190: Дмитриевич | E190: М | F190: 9 | G190: 35 | H190: 63 | I190: 55.56% | J190: Участник
A191: 189 | B191: Жаркова | C191: Кристина | D191: Александровна | E191: Ж | F191: 9 | G191: 34 | H191: 63 | I191: 53.97% | J191: Участник
A192: 190 | B192: Володин | C192: Крилл | D192: Вячеславович | E192: М | F192: 9 | G192: 33 | H192: 63 | I192: 52.38% | J192: Участник
A193: 191 | B193: Матвиенко | C193: Матвей | E193: М | F193: 9 | G193: 31 | H193: 63 | I193: 49.21% | J193: Участник
A194: 192 | B194: Байдин | C194: Антон | D194: Данилович | E194: М | F194: 9 | G194: 30 | H194: 63 | I194: 47.62% | J194: Участник
A195: 193 | B195: Барановский | C195: Максим | D195: Александрович | E195: М | F195: 9 | G195: 29 | H195: 63 | I195: 46.03% | J195: Участник
A196: 194 | B196: Беляева | C196: София | D196: Олеговна | E196: Ж | F196: 9 | G196: 29 | H196: 63 | I196: 46.03% | J196: Участник
A197: 195 | B197: Шелудько | C197: Дмитрий | D197: Сергеевич | E197: М | F197: 9 | G197: 29 | H197: 63 | I197: =G197/H197 -> 46.03% | J197: Участник
A198: 196 | B198: Бочкарева | C198: Елизавета | D198: Артемовна | E198: Ж | F198: 9 | G198: 28 | H198: 63 | I198: 44.44% | J198: Участник
A199: 197 | B199: Никифорова | C199: Елизавета | D199: Александровна | E199: Ж | F199: 9 | G199: 28 | H199: 63 | I199: 44.44% | J199: Участник
A200: 198 | B200: Воронова | C200: Таисия | E200: Ж | F200: 9 | G200: 27 | H200: 63 | I200: 42.86% | J200: Участник
... 79 more rows
